bitfinex/quotes_SOLUSD_20251212
["timestamp","ask_amount","ask_price","bid_price","bid_amount"]
[1765555074890,23.09327023,134.01,133.98,0.7]
[1765555075279,23.09327023,134.01,133.96,4.08930785]
[1765555075486,7.45111615,134.0,133.97,0.7]
[1765555075680,15.64215408,134.01,133.97,0.7]
[1765555075871,23.09327023,134.01,133.97,0.7]
[1765555076071,7.45111615,134.0,133.96,3.38930785]
[1765555076392,7.45111615,133.98,133.96,3.38930785]
[1765555076564,0.57,134.0,133.96,3.38930785]
[1765555076760,7.45111615,133.98,133.96,3.38930785]
[1765555076966,7.45111615,133.99,133.96,3.38930785]
[1765555077181,14.91441874,133.99,133.96,3.38930785]
[1765555077599,7.45111615,134.0,133.97,0.7]
[1765555077776,7.45111615,133.99,133.96,4.08930785]
[1765555077977,8.18,134.01,133.97,0.7]
[1765555078277,7.45111615,134.0,133.96,3.38930785]
[1765555078474,7.45111615,134.0,133.96,4.08930785]
[1765555078475,0.57,134.0,133.96,4.08930785]
[1765555078680,7.45111615,133.99,133.96,11.55418609]
[1765555078864,7.45111615,134.0,133.96,11.55418609]
[1765555079070,8.18,134.01,133.97,0.7]
[1765555079489,15.63111615,134.01,133.97,0.7]
[1765555080774,23.09332673,134.01,133.97,0.7]
[1765555080973,16.21221058,134.01,133.97,8.16399302]
[1765555081178,7.45111615,134.0,133.97,7.46399302]
[1765555081381,7.45111615,133.98,133.96,3.38930785]
[1765555081605,15.63111615,133.97,133.96,3.38930785]
[1765555081816,16.20111615,133.97,133.96,3.38930785]
[1765555082107,15.6414001,133.97,133.96,3.38930785]
[1765555082972,104.2584913,133.97,133.96,3.38930785]
[1765555083301,150.0,133.9,133.89,0.1]
[1765555083505,13.0470912,133.87,133.81,0.7]
[1765555083876,7.4614001,133.83,133.81,0.7]
[1765555084103,7.4614001,133.82,133.79,7.47395541]
[1765555084281,7.4614001,133.8,133.79,0.7]
[1765555084485,7.4614001,133.8,133.77,7.47506635]
[1765555084802,75.0,133.82,133.78,0.7]
[1765555085172,7.4614001,133.82,133.78,0.7]
[1765555085482,7.4614001,133.81,133.78,8.17475178]
[1765555085675,7.4614001,133.81,133.78,7.47475178]
[1765555085875,7.4614001,133.81,133.74,0.7]
[1765555085876,0.37,133.81,133.74,0.7]
[1765555086091,7.4614001,133.77,133.74,7.47709786]
[1765555086399,7.4614001,133.77,133.75,0.7]
[1765555086588,0.37,133.81,133.75,0.7]
[1765555086897,7.4614001,133.76,133.67,0.7]
[1765555087096,20.52484488,133.73,133.66,7.98164921]
[1765555087300,7.4614001,133.68,133.66,0.5]
[1765555087501,7.4614001,133.67,133.66,0.5]
[1765555087875,7.8314001,133.67,133.66,0.5]
[1765555088075,7.8314001,133.67,133.59,3.42980864]
[1765555088076,88.4170912,133.67,133.59,3.42980864]
[1765555088278,7.4614001,133.6,133.59,3.42980864]
[1765555088488,13.0470912,133.64,133.59,3.42980864]
[1765555088489,8.18,133.62,133.59,3.42980864]
[1765555088884,8.45,133.62,133.59,3.42980864]
[1765555089206,7.4614001,133.61,133.59,3.42980864]
[1765555089378,7.4614001,133.6,133.59,3.42980864]
[1765555089576,0.27,133.6,133.59,3.42980864]
[1765555089778,75.0,133.57,133.52,0.7]
[1765555089984,75.0,133.57,133.51,0.7]
[1765555090195,75.0,133.57,133.52,7.48948159]
[1765555090411,75.0,133.59,133.52,8.18948159]
[1765555090872,7.4614001,133.58,133.52,7.48948159]
[1765555091075,7.4614001,133.58,133.54,7.48839299]
[1765555091307,13.0470912,133.56,133.52,7.48897094]
[1765555091487,75.0,133.55,133.53,8.18894811]
[1765555091683,8.18,133.6,133.54,0.7]
[1765555091905,8.18,133.6,133.55,8.80994492]
[1765555092092,7.4614001,133.6,133.54,0.7]
[1765555092292,7.4614001,133.61,133.54,0.7]
[1765555092495,150.0,133.62,133.55,7.4614001]
[1765555092696,8.18,133.63,133.56,7.4614001]
[1765555092898,7.4614001,133.62,133.57,0.7]
[1765555093079,7.48450329,133.61,133.57,0.7]
[1765555093274,8.18,133.63,133.57,0.7]
[1765555093575,8.18,133.63,133.58,7.4614001]
[1765555093776,8.18,133.63,133.57,0.7]
[1765555093983,15.6414001,133.63,133.57,15.64774301]
[1765555094180,8.18,133.63,133.57,15.64774301]
[1765555094383,8.18,133.63,133.54,27.5298097]
[1765555094384,7.4614001,133.6,133.54,0.7]
[1765555094600,7.4614001,133.6,133.55,0.7]
[1765555094907,75.0,133.59,133.52,0.7]
[1765555095096,82.48578554,133.59,133.53,0.7]
[1765555095310,7.4614001,133.58,133.53,8.18892662]
[1765555095498,7.4614001,133.58,133.53,0.7]
[1765555095704,26.19766764,133.6,133.52,7.48949149]
[1765555096022,7.4614001,133.56,133.53,0.7]
[1765555096184,75.0,133.59,133.53,0.7]
[1765555096381,7.4614001,133.58,133.53,8.18895137]
[1765555096584,7.4614001,133.57,133.53,0.7]
[1765555096788,7.4614001,133.54,133.43,0.99999999]
[1765555097034,7.4614001,133.48,133.43,8.19449868]
[1765555097233,75.0,133.53,133.43,0.7]
[1765555097234,75.0,133.51,133.43,0.7]
[1765555097527,75.0,133.51,133.42,0.08240132]
[1765555097528,7.4614001,133.46,133.42,0.08240132]
[1765555098038,8.1214001,133.46,133.42,0.08240132]
[1765555098689,83.1214001,133.46,133.42,0.08240132]
[1765555099035,82.4614001,133.45,133.42,0.08240132]
[1765555099318,7.4614001,133.45,133.42,0.75240132]
[1765555099508,7.4614001,133.46,133.42,0.75240132]
[1765555099811,7.4614001,133.45,133.42,0.75240132]
[1765555100010,12.21626467,133.45,133.42,0.08240132]
[1765555100314,12.93626467,133.47,133.42,0.08240132]
[1765555100516,75.72,133.46,133.42,0.08240132]
[1765555100693,75.0,133.48,133.42,0.08240132]
[1765555100893,12.21626467,133.45,133.42,0.08240132]
[1765555101095,12.21626467,133.44,133.42,0.08240132]
[1765555101393,75.0,133.46,133.42,0.08240132]
[1765555101602,12.21626467,133.43,133.42,0.08240132]
[1765555102292,87.93626467,133.43,133.42,0.08240132]
[1765555102903,75.0,133.38,133.31,0.68]
[1765555103213,75.0,133.41,133.32,0.68]
[1765555103214,75.0,133.39,133.32,0.68]
[1765555103406,12.21626467,133.39,133.32,0.68]
[1765555103604,75.0,133.41,133.32,0.68]
[1765555103605,12.21626467,133.37,133.32,0.68]
[1765555103922,75.0,133.4,133.32,0.68]
[1765555104182,75.72,133.41,133.32,0.68]
[1765555104346,75.0,133.38,133.32,0.68]
[1765555104971,12.21626467,133.36,133.32,0.68]
[1765555105177,0.72,133.4,133.33,7.5001875]
[1765555105178,75.72,133.4,133.33,7.5001875]
[1765555105352,75.72,133.4,133.32,8.18071155]
[1765555105539,12.21626467,133.33,133.27,1.04581]
[1765555105789,75.0,133.37,133.28,0.68]
[1765555105956,12.21626467,133.32,133.28,0.68]
[1765555106140,12.21626467,133.32,133.27,0.36581]
[1765555106141,75.0,133.32,133.27,0.36581]
[1765555106470,75.72,133.34,133.27,1.04581]
[1765555106674,75.72,133.34,133.28,7.50291565]
[1765555106836,12.21626467,133.31,133.28,8.18291565]
[1765555107044,12.21626467,133.32,133.28,7.50291565]
[1765555107338,0.72,133.34,133.28,7.50291565]
[1765555107552,12.21626467,133.32,133.29,0.68]
[1765555107925,0.72,133.33,133.27,0.36581]
[1765555108164,75.0,133.24,133.23,2.84921481]
[1765555108456,150.0,133.24,133.23,2.84921481]
[1765555109051,184.6171836,133.24,133.23,2.84921481]
[1765555109366,200.93238219,133.24,133.23,2.84921481]
[1765555109571,150.28432314,133.24,133.23,2.84921481]
[1765555109789,150.0,133.21,133.14,0.68]
[1765555109940,13.0470912,133.25,133.16,7.50954768]
[1765555109941,88.0470912,133.25,133.16,7.50954768]
[1765555110140,75.0,133.22,133.16,7.50954768]
[1765555110368,75.0,133.22,133.13,19.45824161]
[1765555110670,75.0,133.22,133.1,8.80994492]
[1765555110671,75.0,133.2,133.1,18.78233935]
[1765555110879,75.0,133.2,133.11,0.68]
[1765555111238,75.0,133.2,133.12,38.50833197]
[1765555111441,12.21626467,133.2,133.13,0.68]
[1765555111664,75.0,133.23,133.13,0.68]
[1765555111872,13.0470912,133.2,133.13,0.68]
[1765555112074,150.0,133.21,133.13,0.68]
[1765555112281,75.0,133.23,133.13,0.68]
[1765555112492,75.0,133.23,133.13,0.96432314]
[1765555112649,158.2,133.26,133.15,0.28432314]
[1765555112847,12.21626467,133.21,133.13,0.68]
[1765555113172,12.21626467,133.21,133.09,18.78290374]
[1765555113173,75.0,133.19,133.15,12.21626467]
[1765555113372,88.0470912,133.24,133.18,12.21626467]
[1765555113663,150.0,133.28,133.16,0.28432314]
[1765555113869,8.80994492,133.23,133.12,18.77876227]
[1765555114077,8.80994492,133.23,133.0,1.6]
[1765555114078,88.0470912,133.16,133.08,0.68]
[1765555114241,96.2670912,133.16,133.01,0.68]
[1765555114447,13.0470912,133.12,133.01,0.68]
[1765555114749,75.0,133.09,133.06,7.51525719]
[1765555114956,0.28432314,133.13,133.08,7.51410761]
[1765555114957,150.0,133.13,133.08,7.51410761]
[1765555115155,75.0,133.13,133.07,0.68]
[1765555115355,13.0470912,133.15,133.07,8.19466868]
[1765555115562,75.0,133.09,133.07,0.68]
[1765555115882,8.22,133.12,133.0,1.6]
[1765555116050,13.7270912,133.11,133.0,1.6]
[1765555116247,75.68,133.11,133.0,1.6]
[1765555116480,75.0,133.11,133.05,12.21626467]
[1765555116700,13.7270912,133.1,133.0,1.6]
[1765555116847,75.0,133.03,133.0,1.6]
[1765555117057,87.21626467,133.03,133.0,1.6]
[1765555117269,0.68,133.02,133.0,1.6]
[1765555117473,171.2670912,133.05,133.0,1.6]
[1765555117690,83.9,133.09,133.01,8.19823171]
[1765555117851,75.0,133.14,133.02,0.68]
[1765555118175,150.68,133.14,133.02,0.68]
[1765555118481,0.68,133.13,133.07,12.21626467]
[1765555118699,0.68,133.17,133.08,0.68]
[1765555118983,75.0,133.11,133.03,0.68]
[1765555119346,12.21626467,133.12,133.04,7.51653638]
[1765555119561,13.0470912,133.14,133.04,26.30787733]
[1765555119758,0.6,133.11,133.1,12.21626467]
[1765555119966,75.0,133.19,133.07,13.0470912]
[1765555120151,75.0,133.16,133.05,8.88]
[1765555120367,150.0,133.16,133.09,12.21626467]
[1765555120569,75.0,133.16,133.1,12.21626467]
[1765555120754,75.0,133.18,133.06,0.68]
[1765555120951,0.68,133.17,133.12,12.21626467]
[1765555121178,75.68,133.2,133.08,13.0470912]
[1765555121383,75.0,133.2,133.09,26.29799383]
[1765555121569,75.0,133.2,133.11,12.21626467]
[1765555121755,75.68,133.24,133.11,25.26335587]
[1765555121955,75.0,133.26,133.14,0.99999999]
[1765555122188,75.0,133.3,133.25,12.21626467]
[1765555122372,0.68,133.33,133.2,12.21626467]
[1765555122571,0.68,133.33,133.21,0.68]
[1765555122572,75.0,133.32,133.21,0.68]
[1765555122756,13.7270912,133.33,133.27,12.21626467]
[1765555122991,0.68,133.33,133.21,0.68]
[1765555123180,87.89626467,133.33,133.22,26.27233147]
[1765555123382,150.0,133.29,133.22,19.72264509]
[1765555123606,150.0,133.29,133.22,7.50638042]
[1765555123809,0.68,133.28,133.21,12.21626467]
[1765555124005,75.0,133.29,133.21,8.18656722]
[1765555124209,75.68,133.29,133.21,26.95392702]
[1765555124516,12.21626467,133.26,133.2,7.50741107]
[1765555124699,13.7270912,133.28,133.21,19.72299857]
[1765555124904,75.0,133.27,133.21,19.72299857]
[1765555125292,13.0470912,133.28,133.22,12.21626467]
[1765555125613,75.68,133.27,133.21,12.21626467]
[1765555125784,13.0470912,133.28,133.23,12.21626467]
[1765555125985,75.0,133.29,133.24,12.21626467]
[1765555126212,12.21626467,133.25,133.17,12.21626467]
[1765555126408,163.0470912,133.22,133.13,12.21626467]
[1765555126595,163.0470912,133.22,133.14,12.26517901]
[1765555126596,150.0,133.2,133.14,12.26517901]
[1765555126791,162.26517901,133.2,133.13,12.26517901]
[1765555126992,75.0,133.2,133.15,12.26517901]
[1765555127185,75.0,133.2,133.13,19.77663397]
[1765555127422,75.68,133.21,133.14,12.26517901]
[1765555127596,0.68,133.21,133.13,26.97009238]
[1765555127985,12.94517901,133.21,133.15,12.26517901]
[1765555128187,88.0470912,133.22,133.15,12.26517901]
[1765555128409,88.0470912,133.22,133.14,0.68]
[1765555128410,87.26517901,133.21,133.14,0.68]
[1765555128615,75.0,133.2,133.14,12.26517901]
[1765555128819,13.0470912,133.22,133.17,12.26517901]
[1765555128992,75.0,133.32,133.22,0.14216157]
[1765555129316,75.0,133.32,133.28,19.76818021]
[1765555129486,75.0,133.31,133.23,19.44421342]
[1765555129685,75.0,133.31,133.15,0.99999999]
[1765555129924,162.26517901,133.29,133.22,7.50624978]
[1765555130083,75.0,133.29,133.18,38.50504109]
[1765555130289,150.0,133.29,133.23,12.26517901]
[1765555130530,162.26517901,133.27,133.19,8.18798052]
[1765555130708,13.0470912,133.27,133.21,12.26517901]
[1765555130916,13.0470912,133.27,133.22,12.26517901]
[1765555131117,12.94517901,133.26,133.17,18.77295288]
[1765555131431,163.0470912,133.27,133.21,12.26517901]
[1765555131626,163.0470912,133.27,133.18,0.96432314]
[1765555131831,163.0470912,133.27,133.18,0.68]
[1765555131832,75.0,133.25,133.18,0.68]
[1765555132135,88.0470912,133.27,133.22,12.26517901]
[1765555132333,13.0470912,133.27,133.24,12.26517901]
[1765555132707,88.0470912,133.27,133.21,0.68]
[1765555132901,88.0470912,133.27,133.22,12.26517901]
[1765555133108,13.0470912,133.27,133.22,12.26517901]
[1765555133407,88.0470912,133.28,133.21,7.50693847]
[1765555133731,87.26517901,133.27,133.21,12.26517901]
[1765555134033,75.0,133.27,133.21,12.26517901]
[1765555134251,75.0,133.27,133.2,7.50738996]
[1765555134443,75.0,133.27,133.21,12.26517901]
[1765555134657,88.7270912,133.28,133.23,12.26517901]
[1765555134819,13.0470912,133.28,133.25,12.26517901]
[1765555135154,13.0470912,133.28,133.24,12.26517901]
[1765555135447,13.0470912,133.25,133.21,12.26517901]
[1765555135632,13.0470912,133.27,133.23,12.26517901]
[1765555135820,13.0470912,133.28,133.23,8.18559982]
[1765555136023,13.0470912,133.28,133.24,12.26517901]
[1765555136211,13.0470912,133.28,133.19,0.14216157]
[1765555136212,13.0470912,133.28,133.13,13.0470912]
[1765555136412,13.0470912,133.28,133.19,12.26517901]
[1765555136413,13.0470912,133.25,133.19,12.26517901]
[1765555136611,13.0470912,133.25,133.16,0.68]
[1765555137050,13.0470912,133.25,133.16,0.82216157]
[1765555137214,75.0,133.24,133.17,7.50919876]
[1765555137418,75.0,133.22,133.16,12.94517901]
[1765555137638,150.68,133.24,133.16,8.18962364]
[1765555137839,150.68,133.24,133.16,20.45480265]
[1765555138033,150.68,133.24,133.16,8.18962364]
[1765555138235,0.68,133.23,133.11,13.0470912]
[1765555138430,12.26517901,133.19,133.12,8.19185417]
[1765555138627,75.0,133.2,133.12,8.19185417]
[1765555138953,12.94517901,133.19,133.12,8.19185417]
[1765555139125,75.0,133.19,133.07,8.80994492]
[1765555139322,21.2670912,133.21,133.14,7.51087531]
[1765555139323,108.53227021,133.21,133.14,7.51087531]
[1765555139524,96.2670912,133.21,133.15,12.26517901]
[1765555139941,96.2670912,133.21,133.08,37.56869191]
[1765555139942,75.68,133.2,133.13,7.51129795]
[1765555140257,12.26517901,133.18,133.11,12.26517901]
[1765555140477,75.0,133.18,133.09,0.68]
[1765555140750,0.68,133.19,133.13,7.51144043]
[1765555140955,150.0,133.2,133.13,19.77638643]
[1765555141268,162.26517901,133.2,133.13,8.19120742]
[1765555141557,0.28432314,133.26,133.19,12.26517901]
[1765555141558,75.68,133.26,133.19,12.26517901]
[1765555141792,75.0,133.28,133.22,12.26517901]
[1765555141923,75.0,133.28,133.16,0.28432314]
[1765555141924,75.0,133.31,133.26,12.26517901]
[1765555142250,12.26517901,133.3,133.23,12.26517901]
[1765555142448,12.26517901,133.29,133.19,0.96432314]
[1765555142657,12.26517901,133.24,133.19,0.68]
[1765555142953,12.26517901,133.23,133.16,12.94517901]
[1765555143151,75.0,133.23,133.14,0.68]
[1765555143449,157.50609316,133.23,133.16,12.26517901]
[1765555143625,75.0,133.23,133.18,12.26517901]
[1765555143824,75.0,133.23,133.18,0.68]
[1765555144025,88.7270912,133.25,133.19,0.68]
[1765555144226,75.0,133.27,133.22,12.26517901]
[1765555144426,76.18,133.29,133.19,0.68]
[1765555144623,12.26517901,133.28,133.19,0.68]
[1765555144828,0.68,133.27,133.19,0.68]
[1765555145054,12.94517901,133.27,133.2,12.26517901]
[1765555145256,12.94517901,133.27,133.21,12.26517901]
[1765555145441,75.68,133.29,133.23,12.26517901]
[1765555145880,0.68,133.35,133.24,0.68]
[1765555146065,0.68,133.35,133.29,12.26517901]
[1765555146391,75.0,133.36,133.26,0.28432314]
[1765555146591,75.0,133.36,133.31,12.26517901]
[1765555146760,75.68,133.36,133.31,12.26517901]
[1765555146965,0.68,133.35,133.28,0.68]
[1765555147189,0.68,133.35,133.3,12.26517901]
[1765555147421,0.68,133.35,133.21,63.80872722]
[1765555147422,12.26517901,133.33,133.25,19.44058226]
[1765555147703,13.0470912,133.36,133.31,12.26517901]
[1765555147704,75.0,133.36,133.31,12.26517901]
[1765555147864,8.22,133.37,133.34,12.26517901]
[1765555148065,0.2,133.41,133.36,12.26517901]
[1765555148265,0.2,133.41,133.4,12.26517901]
[1765555148611,0.2,133.41,133.33,0.68]
[1765555148908,0.2,133.41,133.29,12.26517901]
[1765555148909,0.5,133.4,133.34,0.96432314]
[1765555149067,0.2,133.41,133.39,12.26517901]
[1765555149412,75.0,133.48,133.41,7.49568997]
[1765555149781,75.0,133.48,133.36,45.69037199]
[1765555149782,12.26517901,133.46,133.38,0.68]
[1765555150079,75.0,133.48,133.42,12.26517901]
[1765555150279,150.0,133.46,133.35,0.68]
[1765555150484,150.0,133.44,133.36,7.49842976]
[1765555150673,150.71,133.46,133.36,0.68]
[1765555150875,150.71,133.5,133.44,12.26517901]
[1765555151079,150.71,133.5,133.4,26.23673105]
[1765555151080,87.26517901,133.52,133.46,12.26517901]
[1765555151299,12.26517901,133.5,133.42,7.49512816]
[1765555151599,75.0,133.48,133.39,0.28432314]
[1765555151802,12.26517901,133.4,133.35,0.68]
[1765555152098,12.26517901,133.42,133.35,8.32115036]
[1765555152266,171.9770912,133.44,133.35,0.68]
[1765555152465,171.9770912,133.44,133.35,12.94517901]
[1765555152466,0.71,133.43,133.35,12.94517901]
[1765555152667,0.71,133.43,133.35,0.68]
[1765555152902,0.71,133.43,133.35,13.08734058]
[1765555153133,75.0,133.45,133.37,12.26517901]
[1765555153338,0.71,133.46,133.39,7.49681385]
[1765555153646,12.26517901,133.45,133.38,7.49736761]
[1765555153930,0.5,133.44,133.41,12.26517901]
[1765555154135,0.5,133.44,133.39,0.96432314]
[1765555154326,0.5,133.44,133.4,0.68]
[1765555154501,12.26517901,133.46,133.4,0.68]
[1765555154831,12.97517901,133.47,133.4,12.94517901]
[1765555155002,12.97517901,133.47,133.39,0.96432314]
[1765555155207,0.71,133.5,133.44,12.26517901]
[1765555155529,12.26517901,133.48,133.43,7.49456643]
[1765555155906,75.71,133.5,133.43,20.43974544]
[1765555156105,75.71,133.5,133.42,7.49506434]
[1765555156106,12.26517901,133.47,133.42,7.49506434]
[1765555156436,13.0470912,133.44,133.38,0.68]
[1765555156805,158.93,133.47,133.4,7.49576546]
[1765555157124,0.71,133.46,133.42,7.49486967]
[1765555157436,150.0,133.49,133.42,12.26517901]
[1765555157437,162.97517901,133.49,133.42,12.26517901]
[1765555157640,150.71,133.49,133.42,12.26517901]
[1765555157825,13.0470912,133.5,133.4,7.49625187]
[1765555157826,12.26517901,133.46,133.4,7.49625187]
[1765555158028,22.36,133.47,133.4,38.50206056]
[1765555158245,12.94517901,133.46,133.4,7.49625187]
[1765555158536,0.68,133.46,133.4,19.76143088]
[1765555158742,12.94517901,133.46,133.4,7.49625187]
[1765555158910,12.26517901,133.43,133.37,0.67]
[1765555159110,75.0,133.43,133.35,31.68145594]
[1765555159311,13.0470912,133.44,133.38,7.49728028]
[1765555159610,13.0470912,133.44,133.37,7.49793806]
[1765555159611,88.7270912,133.44,133.37,7.49793806]
[1765555159821,0.5,133.45,133.37,26.24278322]
[1765555160013,0.5,133.45,133.42,7.51466457]
[1765555160217,0.5,133.45,133.39,0.28432314]
[1765555160417,0.5,133.45,133.42,7.51466457]
[1765555160813,0.5,133.45,133.39,0.66]
[1765555161215,75.68,133.48,133.44,7.51466457]
[1765555161216,0.68,133.48,133.44,7.51466457]
[1765555161416,0.68,133.48,133.43,15.00870111]
[1765555161631,75.0,133.49,133.43,7.49403654]
[1765555161951,8.22,133.5,133.46,7.51466457]
[1765555162137,0.7,133.53,133.48,7.51466457]
[1765555162462,0.7,133.56,133.47,0.28432314]
[1765555162614,157.51466457,133.55,133.45,0.66]
[1765555162816,0.7,133.56,133.5,7.51466457]
[1765555163020,150.0,133.57,133.52,7.51466457]
[1765555163021,75.0,133.57,133.52,7.51466457]
[1765555163243,75.0,133.57,133.47,7.79898771]
[1765555163244,75.2,133.59,133.5,0.28432314]
[1765555163447,75.9,133.59,133.55,7.48783227]
[1765555163818,0.9,133.59,133.55,15.00249684]
[1765555164024,0.2,133.59,133.55,7.48783227]
[1765555164248,0.2,133.59,133.56,0.66]
[1765555164755,0.2,133.59,133.58,7.51466457]
[1765555164919,1e-08,133.59,133.58,0.66]
[1765555165117,1e-08,133.59,133.58,8.45898771]
[1765555165346,1e-08,133.59,133.55,64.30657431]
[1765555165537,1e-08,133.59,133.58,7.48615062]
[1765555165714,1e-08,133.59,133.58,15.00081519]
[1765555165914,1e-08,133.59,133.58,15.66081519]
[1765555166660,1e-08,133.59,133.58,15.94513833]
[1765555166886,1e-08,133.59,133.58,15.00081519]
[1765555167019,1e-08,133.59,133.54,18.72070347]
[1765555167214,1e-08,133.59,133.57,7.48662721]
[1765555167421,1e-08,133.59,133.58,15.00081519]
[1765555167739,0.2,133.61,133.58,15.00081519]
[1765555167740,1e-08,133.61,133.59,0.28432314]
[1765555168050,75.0,133.73,133.61,9.09426806]
[1765555168349,82.48773409,133.73,133.67,7.48773409]
[1765555168550,7.48773409,133.71,133.62,0.66]
[1765555168719,7.48773409,133.71,133.64,7.48773409]
[1765555168720,82.48773409,133.7,133.64,7.48773409]
[1765555168920,82.48773409,133.7,133.62,0.66]
[1765555168921,0.7,133.7,133.66,7.48773409]
[1765555169437,0.7,133.7,133.63,26.1917234]
[1765555169738,75.7,133.74,133.69,7.48773409]
[1765555169943,0.7,133.74,133.65,7.48773409]
[1765555170140,0.7,133.74,133.71,7.48773409]
[1765555170339,8.18773409,133.74,133.66,0.66]
[1765555170649,75.0,133.73,133.66,7.48773409]
[1765555170828,7.48773409,133.72,133.64,0.28432314]
[1765555171030,82.48773409,133.7,133.63,7.48334954]
[1765555171220,75.0,133.69,133.63,7.48334954]
[1765555171421,0.7,133.69,133.61,0.66]
[1765555171635,0.7,133.69,133.64,7.48773409]
[1765555171846,8.18773409,133.69,133.63,18.70837386]
[1765555172153,0.7,133.69,133.65,7.48773409]
[1765555172532,0.7,133.69,133.63,26.19610795]
[1765555172734,0.7,133.74,133.68,7.48773409]
[1765555172925,8.18773409,133.73,133.64,0.94432314]
[1765555173125,7.48773409,133.69,133.62,7.48390959]
[1765555173325,7.48773409,133.7,133.64,7.48773409]
[1765555173525,8.18773409,133.7,133.65,7.4822297]
[1765555173725,0.7,133.69,133.64,7.48275928]
[1765555173928,8.18773409,133.69,133.64,7.48271326]
[1765555174548,8.18773409,133.68,133.64,7.48271326]
[1765555174750,0.7,133.68,133.64,7.48271326]
[1765555174964,88.7470912,133.71,133.65,7.48773409]
[1765555175123,7.48773409,133.69,133.64,7.48271326]
[1765555175327,88.0470912,133.71,133.64,7.48271326]
[1765555175542,0.7,133.71,133.67,7.48097267]
[1765555175738,0.7,133.71,133.66,7.48152461]
[1765555175930,0.7,133.71,133.64,19.36697395]
[1765555175931,7.48773409,133.7,133.65,7.48217589]
[1765555176120,7.48773409,133.69,133.64,7.48273034]
[1765555176344,7.48773409,133.69,133.59,37.42766056]
[1765555176345,75.0,133.68,133.58,0.66]
[1765555176558,7.48773409,133.68,133.61,7.48773409]
[1765555176725,7.48773409,133.65,133.59,8.14773409]
[1765555176932,7.48773409,133.63,133.58,7.48612107]
[1765555177156,8.18773409,133.64,133.58,7.48773409]
[1765555177352,13.0470912,133.66,133.62,14.97151704]
[1765555177531,88.7470912,133.66,133.6,7.48488324]
[1765555177953,13.7470912,133.66,133.61,7.48773409]
[1765555178259,0.5,133.67,133.65,7.48773409]
[1765555178423,8.80994492,133.73,133.66,7.48773409]
[1765555178424,75.0,133.72,133.66,7.48773409]
[1765555178757,75.0,133.74,133.68,7.48773409]
[1765555178931,0.7,133.75,133.7,7.48773409]
[1765555179131,75.0,133.76,133.71,7.48773409]
[1765555179466,13.0470912,133.76,133.71,7.48773409]
[1765555179646,83.18773409,133.77,133.71,7.4787304]
[1765555179647,0.7,133.75,133.71,7.4787304]
[1765555179838,7.48773409,133.74,133.68,0.66]
[1765555180160,7.48773409,133.74,133.67,7.48773409]
[1765555180161,83.2,133.74,133.67,7.48773409]
[1765555180337,7.48773409,133.73,133.65,0.94432314]
[1765555180542,91.38773409,133.74,133.68,14.96785467]
[1765555180746,83.9,133.74,133.68,7.48773409]
[1765555180942,7.48773409,133.72,133.67,7.48072185]
[1765555181142,75.7,133.73,133.67,7.48072185]
[1765555181345,75.7,133.73,133.65,18.70531191]
[1765555181529,0.7,133.73,133.68,14.96809292]
[1765555181866,8.9,133.74,133.69,7.48773409]
[1765555182163,0.7,133.73,133.67,14.96878626]
[1765555182375,0.7,133.73,133.67,7.48105217]
[1765555182546,0.7,133.73,133.68,7.48773409]
[1765555182933,0.7,133.73,133.67,7.48105217]
[1765555183238,0.7,133.73,133.68,7.48773409]
[1765555183449,0.7,133.73,133.67,7.48105217]
[1765555183749,8.2,133.74,133.72,7.48773409]
[1765555184073,8.2,133.74,133.7,7.48773409]
[1765555184074,83.9,133.74,133.7,7.48773409]
[1765555184274,158.9,133.74,133.69,14.96768034]
[1765555184479,8.9,133.74,133.7,14.96710757]
[1765555184784,8.9,133.74,133.7,14.96716139]
[1765555184932,7.48773409,133.77,133.7,26.1780062]